fUST/lending_fUST_20251117
["ID","MTS","AMOUNT","RATE_DAILY","PERIOD"]
[394170700,1763344655818,174.842213,0.00013699,2]
[394170701,1763344656028,174.842213,0.00020187,2]
[394170702,1763344656320,174.842213,0.00026676,2]
[394170703,1763344656527,174.842213,0.00033165,2]
[394170709,1763344673653,150.0,0.00032703,2]
[394170710,1763344738401,150.0,0.00032637,2]
[394170711,1763344804467,150.0,0.00034673,2]
[394170713,1763344871746,150.0,0.00033061,2]
[394170714,1763344877327,151.0,0.00038358,120]
[394170715,1763344938814,150.0,0.00032653,2]
[394170717,1763345004514,150.0,0.00032638,2]
[394170718,1763345005965,152.441668,0.00038355,120]
[394170719,1763345068872,150.0,0.00032576,2]
[394170745,1763345132797,150.0,0.00031094,2]
[394170746,1763345133175,150.0,0.00032575,2]
[394170751,1763345221451,262.4217273,0.00038355,120]
[394170752,1763345234094,-209.98713641,0.000392,120]
[394170753,1763345234112,-174.842213,0.00039654,2]
[394170754,1763345234131,-218.26383194,0.00042776,2]
[394170755,1763345234150,-207.27402541,0.00042943,2]
[394170756,1763345234169,-578.50778667,0.00043471,2]
[394170812,1763345432355,-150.0,0.00038331,20]
[394170814,1763345432364,-150.0,0.00042918,12]
[394170816,1763345432373,-61.52446833,0.00043471,2]
[394170830,1763345432466,-500.0,0.00043918,2]
[394170831,1763345432477,-150.0,0.00045063,30]
[394170833,1763345432487,-174.842213,0.00046143,2]
[394170835,1763345432496,-692.84279703,0.00047108,2]
[394170837,1763345432507,-2903.03111212,0.00047108,2]
[394170839,1763345432517,-199.0,0.00047412,5]
[394170841,1763345432526,-300.0,0.00047412,5]
[394170843,1763345432535,-1200.0,0.00047412,5]
[394170845,1763345432545,-1650.0,0.00047413,5]
[394170847,1763345432554,-474.93370643,0.00047414,2]
[394170849,1763345432563,-1897.83509088,0.00047414,2]
[394170851,1763345432572,-286.34775686,0.00047414,2]
[394170853,1763345432582,-253.17069595,0.00047414,2]
[394170855,1763345432591,-150.0,0.00048109,90]
[394170857,1763345432600,-150.0,0.00048402,14]
[394170859,1763345432609,-1506.06347619,0.00048681,2]
[394170861,1763345432618,-500.0,0.00048767,120]
[394170863,1763345432627,-1000.0,0.000488,90]
[394170865,1763345432636,-1506.06347619,0.00048872,2]
[394170867,1763345432645,-6338.08421152,0.00048889,28]
[394170869,1763345432654,-150.0,0.00048931,100]
[394170871,1763345432663,-500.0,0.00048972,120]
[394170873,1763345432672,-500.0,0.00048972,120]
[394170875,1763345432681,-500.0,0.00048972,120]
[394170876,1763345432690,-500.0,0.00048972,7]
[394170878,1763345432699,-500.0,0.00048972,120]
[394170879,1763345432709,-500.0,0.00048972,120]
[394170880,1763345432718,-525.46659267,0.00048972,120]
[394170881,1763345432727,-500.0,0.00048972,120]
[394170882,1763345432737,-500.0,0.00048972,120]
[394170883,1763345432747,-500.0,0.00048972,120]
[394170884,1763345432758,-500.0,0.00048972,7]
[394170885,1763345432767,-500.0,0.00048972,120]
[394170886,1763345432776,-500.0,0.00048972,120]
[394170887,1763345432786,-500.0,0.00048972,120]
[394170888,1763345432795,-320.74300949,0.00048972,7]
[394170889,1763345432804,-500.0,0.00048972,120]
[394170890,1763345432814,-500.0,0.00048972,120]
[394170891,1763345432823,-500.0,0.00048972,120]
[394170892,1763345432832,-500.0,0.00048972,120]
[394170893,1763345432841,-500.0,0.00048972,120]
[394170894,1763345432850,-500.0,0.00048972,120]
[394170895,1763345432860,-500.0,0.00048972,120]
[394170896,1763345432869,-500.0,0.00048972,120]
[394170897,1763345432878,-500.0,0.00048972,120]
[394170898,1763345432887,-500.0,0.00048972,120]
[394170899,1763345432896,-500.0,0.00048972,120]
[394170900,1763345432907,-500.0,0.00048972,120]
[394170901,1763345432916,-500.0,0.00048972,120]
[394170902,1763345432925,-500.0,0.00048972,120]
[394170903,1763345432935,-200.53087074,0.00048972,120]
[394170904,1763345432944,-500.0,0.00048972,120]
[394170905,1763345432954,-182.4627502,0.00048972,120]
[394170906,1763345432963,-500.0,0.00048972,120]
[394170907,1763345432972,-500.0,0.00048972,120]
[394170908,1763345432982,-500.0,0.00048972,120]
[394170909,1763345432991,-500.0,0.00048972,120]
[394170910,1763345433001,-500.0,0.00048972,120]
[394170911,1763345433011,-500.0,0.00048972,120]
[394170912,1763345433023,-500.0,0.00048972,120]
[394170913,1763345433032,-500.0,0.00048972,120]
[394170914,1763345433042,-500.0,0.00048972,120]
[394170915,1763345433051,-500.0,0.00048972,120]
[394170916,1763345433061,-500.0,0.00048972,120]
[394170917,1763345433071,-410.77482246,0.00048972,120]
[394170918,1763345433081,-500.0,0.00048972,120]
[394170919,1763345433091,-500.0,0.00048972,120]
[394170920,1763345433101,-500.0,0.00048972,120]
[394170921,1763345433111,-500.0,0.00048972,120]
[394170922,1763345433120,-500.0,0.00048972,120]
[394170923,1763345433130,-539.24845531,0.00048972,120]
[394170924,1763345433140,-500.0,0.00048972,120]
[394170925,1763345433150,-500.0,0.00048972,120]
[394170926,1763345433160,-500.0,0.00048972,120]
[394170927,1763345433171,-500.0,0.00048972,120]
[394170928,1763345433180,-500.0,0.00048972,120]
[394170929,1763345433190,-500.0,0.00048972,120]
[394170930,1763345433200,-500.0,0.00048972,120]
[394170931,1763345433210,-500.0,0.00048972,120]
[394170932,1763345433220,-150.0,0.00048973,10]
[394170933,1763345433229,-500.0,0.00048973,10]
[394170934,1763345433239,-150.0,0.0004899,120]
[394170935,1763345433248,-150.0,0.00048998,60]
[394170936,1763345433259,-259.61051827,0.00049056,49]
[394170937,1763345433269,-241.01600966,0.00049062,2]
[394170938,1763345433279,-963.09997459,0.00049062,2]
[394170939,1763345433288,-506.67186192,0.00049062,2]
[394170940,1763345433298,-519.1,0.00049066,49]
[394170941,1763345433308,-600.0,0.00049096,120]
[394170942,1763345433317,-1506.0634762,0.00049134,2]
[394170943,1763345433327,-259.55,0.00049169,50]
[394170944,1763345433336,-243.26365396,0.00049178,2]
[394170945,1763345433345,-243.26365394,0.00049209,2]
[394170946,1763345433359,-502.45638021,0.00049273,10]
[394170947,1763345433373,-450.87845856,0.00049273,10]
[394170948,1763345433385,-501.26527799,0.00049273,10]
[394170949,1763345433398,-500.0,0.00049273,10]
[394170950,1763345433409,-150.0,0.00049273,10]
[394170951,1763345433420,-502.77937304,0.00049273,10]
[394170952,1763345433432,-500.0,0.00049273,10]
[394170953,1763345433444,-500.0,0.00049273,10]
[394170954,1763345433456,-500.92675252,0.00049273,10]
[394170955,1763345433469,-370.98799566,0.00049273,10]
[394170956,1763345433481,-500.0,0.00049273,10]
[394170957,1763345433493,-502.66529717,0.00049273,10]
[394170958,1763345433506,-500.0,0.00049273,10]
[394170959,1763345433519,-231.86002304,0.00049273,10]
[394170960,1763345433532,-501.07386946,0.00049273,10]
[394170961,1763345433544,-552.63574345,0.00049277,120]
[394170962,1763345433556,-1023.83980898,0.00049277,7]
[394170963,1763345433567,-1023.83980898,0.00049277,7]
[394170964,1763345433579,-1023.83980898,0.00049277,7]
[394170965,1763345433591,-1023.83980898,0.00049277,7]
[394170966,1763345433602,-1023.83980898,0.00049277,7]
[394170967,1763345433614,-1023.83980898,0.00049277,7]
[394170968,1763345433627,-1023.83980898,0.00049277,7]
[394170969,1763345433638,-1023.83980898,0.00049277,7]
[394170970,1763345433651,-1023.83980898,0.00049277,7]
[394170971,1763345433661,-1023.83980898,0.00049277,7]
[394170972,1763345433671,-1023.83980898,0.00049277,7]
[394170973,1763345433682,-1023.83980898,0.00049277,7]
[394170974,1763345433694,-1023.83980898,0.00049277,7]
[394170975,1763345433705,-1023.83980898,0.00049277,7]
[394170976,1763345433717,-1023.83980898,0.00049277,7]
[394170977,1763345433728,-1023.83980898,0.00049277,7]
[394170978,1763345433741,-1023.83980898,0.00049277,7]
[394170979,1763345433752,-1023.83980898,0.00049277,7]
[394170980,1763345433767,-1053.09237497,0.00049277,7]
[394170981,1763345433780,-1053.09237497,0.00049277,7]
[394170982,1763345433793,-1053.09237497,0.00049277,7]
[394170983,1763345433808,-1053.09237497,0.00049277,7]
[394170984,1763345433819,-1053.09237497,0.00049277,7]
[394170985,1763345433829,-1053.09237497,0.00049277,7]
[394170986,1763345433839,-1053.09237497,0.00049277,7]
[394170987,1763345433850,-33927.06483556,0.00049278,4]
[394170990,1763345437971,-500.0,0.00048972,120]
[394170991,1763345437983,-500.0,0.00048972,120]
[394170992,1763345437994,-500.0,0.00048972,120]
[394170993,1763345438006,-500.0,0.00048972,120]
[394170994,1763345438019,-500.0,0.00048972,120]
[394170995,1763345438031,-500.0,0.00048972,120]
[394170996,1763345438042,-500.0,0.00048972,120]
[394170997,1763345438053,-500.0,0.00048972,120]
[394170998,1763345438064,-500.0,0.00048972,120]
[394170999,1763345438074,-500.0,0.00048972,120]
[394171000,1763345438084,-500.0,0.00048972,120]
[394171001,1763345438094,-500.0,0.00048972,120]
[394171002,1763345438103,-500.0,0.00048972,120]
[394171003,1763345438113,-500.0,0.00048972,120]
[394171004,1763345438235,-500.0,0.00048972,120]
[394171005,1763345438245,-500.0,0.00048972,120]
[394171006,1763345438257,-500.0,0.00048972,120]
[394171007,1763345438267,-500.0,0.00048972,120]
[394171008,1763345438277,-500.0,0.00048972,120]
[394171009,1763345438286,-500.0,0.00048972,120]
[394171010,1763345438296,-500.0,0.00048972,120]
[394171011,1763345438305,-500.0,0.00048972,120]
[394171012,1763345438314,-500.0,0.00048972,120]
[394171013,1763345438324,-500.0,0.00048972,120]
[394171014,1763345438333,-500.0,0.00048972,120]
[394171015,1763345438343,-243.26365394,0.00049239,2]
[394171016,1763345438354,-243.26365394,0.0004927,2]
[394171017,1763345438363,-41638.74416534,0.00049278,4]
[394171018,1763345438373,-415.62519364,0.00049278,4]
[394171019,1763345438383,-500.0,0.00049288,120]
[394171020,1763345438392,-1008.66,0.000493,120]
[394171021,1763345438402,-150.0,0.00049313,5]
[394171022,1763345438411,-150.0,0.00049314,120]
[394171023,1763345438420,-150.0,0.00049314,7]
[394171024,1763345438429,-191.23588815,0.00049315,120]
[394171025,1763345438439,-500.0,0.00049315,120]
[394171026,1763345438448,-500.0,0.00049315,120]
[394171027,1763345438458,-352.81271771,0.00049315,120]
[394171028,1763345438467,-310.06296109,0.00049315,120]
[394171029,1763345438476,-1311.32,0.00049315,120]
[394171030,1763345438490,-420.30779144,0.00049315,120]
[394171031,1763345438499,-570.75272178,0.00049315,120]
[394171032,1763345438509,-649.89082902,0.00049315,120]
[394171033,1763345438520,-168.04497852,0.00049315,120]
[394171034,1763345438532,-521.54776667,0.00049315,120]
[394171035,1763345438545,-500.0,0.00049315,120]
[394171036,1763345438554,-500.0,0.00049315,120]
[394171037,1763345438564,-500.96118343,0.00049315,2]
[394171038,1763345438573,-150.4718788,0.00049315,120]
[394171039,1763345438583,-302263.236003,0.00049356,4]
[394171040,1763345438592,-7481.25348552,0.00049356,4]
[394171041,1763345438601,-304.946858,0.00049366,120]
[394171042,1763345438611,-304.946858,0.00049366,120]
[394171043,1763345438621,-304.946858,0.00049366,120]
[394171044,1763345438630,-151.0,0.00049366,7]
[394171045,1763345438640,-151.0,0.00049366,120]
[394171046,1763345438650,-304.946858,0.00049366,120]
[394171047,1763345438659,-151.0,0.00049366,120]
[394171048,1763345438669,-151.0,0.00049366,120]
[394171049,1763345438679,-151.0,0.00049366,120]
[394171050,1763345438688,-152.768181,0.00049366,120]
[394171051,1763345438698,-151.0,0.00049366,30]
[394171052,1763345438707,-151.0,0.00049366,120]
[394171053,1763345438716,-151.0,0.00049366,120]
[394171054,1763345438726,-151.0,0.00049366,120]
[394171055,1763345438735,-151.0,0.00049366,120]
[394171056,1763345438745,-151.0,0.00049366,120]
[394171057,1763345438754,-151.0,0.00049366,120]
[394171058,1763345438765,-151.0,0.00049366,120]
[394171059,1763345438775,-151.0,0.00049366,120]
[394171060,1763345438784,-151.0,0.00049366,120]
[394171061,1763345438794,-151.0,0.00049366,120]
[394171062,1763345438803,-151.0,0.00049366,120]
[394171063,1763345438812,-151.0,0.00049366,120]
[394171064,1763345438822,-153.773247,0.00049366,120]
[394171065,1763345438831,-151.0,0.00049366,120]
[394171066,1763345438841,-153.773247,0.00049366,120]
[394171067,1763345438851,-151.0,0.00049366,120]
[394171068,1763345438861,-151.0,0.00049366,120]
[394171069,1763345438871,-153.773247,0.00049366,120]
[394171070,1763345438880,-704.774243,0.00049366,120]
[394171071,1763345438893,-153.773247,0.00049366,120]
[394171072,1763345438903,-704.774243,0.00049366,120]
[394171073,1763345438914,-151.0,0.00049366,120]
[394171074,1763345438923,-704.774243,0.00049366,120]
[394171075,1763345438933,-704.774243,0.00049366,120]
[394171076,1763345438943,-151.0,0.00049366,120]
[394171077,1763345438954,-151.0,0.00049366,120]
[394171078,1763345438963,-151.0,0.00049366,120]
[394171079,1763345438973,-151.0,0.00049366,120]
[394171080,1763345438983,-151.0,0.00049366,120]
[394171081,1763345438993,-151.0,0.00049366,60]
[394171082,1763345439003,-151.0,0.00049366,120]
[394171083,1763345439013,-151.0,0.00049366,120]
[394171084,1763345439026,-890000.0,0.00049366,2]
[394171085,1763345439035,-648.21,0.000494,2]
[394171086,1763345439045,-151.0,0.000494,25]
[394171087,1763345439054,-415.62519364,0.00049456,4]
[394171088,1763345439064,-2321.83,0.00049467,3]
[394171089,1763345439074,-170.78991164,0.00049467,120]
[394171090,1763345439084,-500.0,0.00049467,120]
[394171091,1763345439093,-311.12039148,0.00049467,120]
[394171092,1763345439106,-331.79386096,0.00049467,120]
[394171093,1763345439115,-159.31531264,0.00049467,120]
[394171094,1763345439125,-245.94547655,0.00049467,120]
[394171095,1763345439135,-208.49385494,0.00049467,120]
[394171096,1763345439144,-1413.35,0.00049467,120]
[394171097,1763345439154,-273.18871471,0.00049467,120]
[394171098,1763345439164,-168.18444552,0.00049467,120]
[394171099,1763345439173,-174.25440505,0.00049467,120]
[394171100,1763345439182,-500.0,0.00049467,120]
[394171101,1763345439192,-153.38854416,0.00049467,120]
[394171102,1763345439203,-254.65866221,0.00049467,60]
[394171103,1763345439216,-152.12220667,0.00049467,120]
[394171104,1763345439226,-171.59827234,0.00049467,120]
[394171105,1763345439236,-825.26,0.00049468,30]
[394171106,1763345439245,-1047.28,0.00049468,30]
[394171107,1763345439258,-872.74,0.00049468,30]
[394171108,1763345439268,-727.28,0.00049468,30]
[394171109,1763345439277,-606.07,0.00049468,30]
[394171110,1763345439287,-505.05,0.00049468,30]
[394171111,1763345439296,-420.88,0.00049468,30]
[394171112,1763345439305,-350.73,0.00049468,30]
[394171113,1763345439316,-292.28,0.00049468,30]
[394171114,1763345439326,-243.56,0.00049468,30]
[394171115,1763345439335,-202.97,0.00049468,30]
[394171116,1763345439345,-169.14,0.00049468,30]
[394171117,1763345439355,-155.200601,0.00049469,120]
[394171118,1763345439365,-151.401774,0.00049469,120]
[394171119,1763345439375,-151.0,0.00049469,90]
[394171120,1763345439384,-151.0,0.00049469,120]
[394171121,1763345439393,-151.0,0.00049469,120]
[394171122,1763345439402,-151.0,0.00049469,120]
[394171123,1763345439421,-151.0,0.00049469,120]
[394171124,1763345439432,-151.0,0.00049469,120]
[394171125,1763345439441,-243.173132,0.00049469,120]
[394171126,1763345439451,-280.164424,0.00049469,120]
[394171127,1763345439461,-151.0,0.00049469,2]
[394171128,1763345439471,-151.0,0.00049469,2]
[394171129,1763345439481,-151.0,0.00049469,2]
[394171130,1763345439491,-502.439917,0.00049469,120]
[394171131,1763345439501,-151.0,0.00049469,120]
[394171132,1763345439511,-150.827697,0.00049469,2]
[394171133,1763345439529,-0.172303,0.00049469,2]
[394171134,1763345439539,-502.439917,0.00049469,120]
[394171135,1763345439550,-247.806739,0.00049469,120]
[394171136,1763345439560,-151.0,0.00049469,120]
[394171137,1763345439570,-247.806739,0.00049469,120]
[394171138,1763345439579,-85.70292065,0.00049469,120]
[394171311,1763345555638,172.230633,0.0003277,2]
[394171316,1763346248129,204.0,0.00035,120]
[394171318,1763346398716,2298.00940855,0.0002,2]
[394171319,1763346398741,7626.99059145,0.0002,2]
[394171320,1763346411758,1710.64225289,0.00038341,20]
[394171321,1763346416128,-216.68123857,0.00035366,2]
[394171322,1763346445760,269.15083332,0.00038341,30]
[394171323,1763346461203,1707.37250763,0.00038341,25]
[394171324,1763346485571,340.25389326,0.00038341,30]
[394171325,1763346511460,166.73030846,0.00025,120]
[394171326,1763346513408,3213.85910989,0.00038341,30]
[394171327,1763346513617,193.81111598,0.00032,120]
[394171328,1763346514586,47703.487589,0.00038341,120]
[394171329,1763346515571,268.06780851,0.00038341,120]
[394171330,1763346518984,169.09808511,0.000295,120]
[394171331,1763346520590,163.82358452,0.00038341,120]
[394171332,1763346522296,505.56747512,0.00038341,120]
[394171333,1763346522616,249.83689508,0.00038341,90]
[394171385,1763346632397,-745.35001515,0.00035342,2]
[394171573,1763346638240,-254.64998485,0.00035342,2]
[394171574,1763346638250,-474.37155008,0.00035342,2]
[394171575,1763346638259,-220.18566148,0.00036788,3]
[394171576,1763346638273,-82.81433852,0.00036788,3]
[394171577,1763346638286,-216.0,0.00036788,2]
[394171578,1763346638299,-3472.72592729,0.00036789,60]
[394171579,1763346638312,-188.30988018,0.0003748,30]
[394171580,1763346638324,-150.0,0.0003834,20]
[394171581,1763346638334,-330.0,0.00038372,20]
[394171582,1763346638345,-850.99713349,0.0004,120]
[394171583,1763346638357,-373.87417488,0.0004,120]
[394171584,1763346638369,-215.72163753,0.00040321,2]
[394171585,1763346638382,-862.02366356,0.00040321,2]
[394171586,1763346638395,-239.49341552,0.00042,120]
[394171587,1763346638407,-150.0,0.00042917,12]
[394171588,1763346638418,-500.0,0.00043499,31]
[394171589,1763346638434,-355.61454119,0.00043499,31]
[394171590,1763346638448,-368.24627502,0.00043499,31]
[394171591,1763346638460,-500.0,0.00043499,31]
[394171592,1763346638473,-378.97498027,0.00043499,31]
[394171593,1763346638484,-16663.65028291,0.000435,120]
[394171594,1763346638497,-164.42702645,0.00044676,2]
[394171595,1763346638515,-349.75718839,0.00044753,2]
[394171596,1763346638527,-6000.0,0.00045,120]
[394171597,1763346638540,-187.48277592,0.00045,120]
[394171598,1763346638552,-6000.0,0.00046,120]
[394171599,1763346638564,-150.0,0.00046,120]
[394171600,1763346638576,-221.68131521,0.00046848,2]
[394171601,1763346638587,-886.72526084,0.00046848,2]
[394171602,1763346638598,-6280.0,0.00047,120]
[394171603,1763346638610,-515.56356353,0.00047028,2]
[394171604,1763346638622,-2062.25425411,0.00047028,2]
[394171605,1763346638635,-522.07567123,0.00047028,2]
[394171606,1763346638648,-713.90656459,0.00047108,2]
[394171607,1763346638662,-385.38977602,0.00047108,2]
[394171608,1763346638675,-152.553203,0.00048,120]
[394171609,1763346638688,-177.0,0.00048,120]
[394171610,1763346638700,-150.0,0.00048401,14]
[394171611,1763346638712,-155.77,0.000486,49]
[394171612,1763346638725,-155.72,0.0004869,49]
[394171613,1763346638735,-311.44,0.000487,49]
[394171614,1763346638746,-150.0,0.00048873,10]
[394171615,1763346638756,-800.0,0.0004888,120]
[394171616,1763346638767,-150.0,0.00048888,28]
[394171617,1763346638780,-890000.0,0.000489,2]
[394171618,1763346638794,-150.0,0.0004893,100]
[394171619,1763346638806,-154.97,0.00048959,120]
[394171620,1763346638818,-182.44774047,0.00048966,2]
[394171621,1763346638829,-151.0,0.00048972,60]
[394171622,1763346638840,-500.0,0.00048973,10]
[394171623,1763346638851,-403.28589255,0.00048973,3]
[394171624,1763346638863,-150.0,0.00048973,10]
[394171625,1763346638875,-507.77053588,0.00048973,10]
[394171626,1763346638887,-500.92618433,0.00048973,10]
[394171627,1763346638899,-502.92114223,0.00048973,10]
[394171628,1763346638914,-500.0,0.00048973,10]
[394171629,1763346638924,-765.83217712,0.00048989,7]
[394171630,1763346638936,-765.83217712,0.00048989,7]
[394171631,1763346638947,-765.83217712,0.00048989,7]
[394171632,1763346638959,-765.83217712,0.00048989,7]
[394171633,1763346638970,-765.83217712,0.00048989,7]
[394171634,1763346638981,-765.83217712,0.00048989,7]
[394171635,1763346638992,-765.83217712,0.00048989,7]
[394171636,1763346639004,-765.83217712,0.00048989,7]
[394171637,1763346639015,-765.83217712,0.00048989,7]
[394171638,1763346639026,-765.83217712,0.00048989,7]
[394171639,1763346639037,-765.83217712,0.00048989,7]
[394171640,1763346639049,-765.83217712,0.00048989,7]
[394171641,1763346639060,-765.83217712,0.00048989,7]
[394171642,1763346639071,-765.83217712,0.00048989,7]
[394171643,1763346639082,-765.83217712,0.00048989,7]
[394171644,1763346639093,-765.83217712,0.00048989,7]
[394171645,1763346639103,-765.83217712,0.00048989,7]
[394171646,1763346639114,-804.12378598,0.00048989,7]
[394171647,1763346639125,-804.12378598,0.00048989,7]
[394171648,1763346639136,-804.12378598,0.00048989,7]
[394171649,1763346639147,-804.12378598,0.00048989,7]
[394171650,1763346639158,-804.12378598,0.00048989,7]
[394171651,1763346639169,-804.12378598,0.00048989,7]
[394171652,1763346639181,-804.12378598,0.00048989,7]
[394171653,1763346639191,-804.12378598,0.00048989,7]
[394171654,1763346639203,-804.12378598,0.00048989,7]
[394171655,1763346639214,-804.12378598,0.00048989,7]
[394171656,1763346639226,-386.84502041,0.00048989,120]
[394171657,1763346639238,-30396.82053103,0.0004899,2]
[394171658,1763346639249,-369347.278795,0.0004899,4]
[394171659,1763346639260,-6712.34687732,0.0004899,4]
[394171660,1763346639272,-500.0,0.00048999,2]
[394171661,1763346639283,-48295.51589496,0.00049,2]
[394171690,1763346885098,179.28567847,0.00038371,30]
[394171691,1763346910453,153.773247,0.00038371,120]
[394171692,1763346910766,153.773247,0.00038371,120]
[394171693,1763346911056,153.773247,0.00038371,120]
[394171694,1763346911342,153.773247,0.00038371,120]
[394171695,1763346911629,153.773247,0.00038371,120]
[394171696,1763346911921,153.773247,0.00038371,120]
[394171697,1763346912229,153.773247,0.00038371,120]
[394171698,1763346912531,153.773247,0.00038371,120]
[394171699,1763346913125,153.773247,0.00038371,120]
[394171700,1763346913433,153.773247,0.00038371,120]
[394171701,1763346913739,153.773247,0.00038371,120]
[394171702,1763346914031,153.773247,0.00038371,120]
[394171703,1763346914339,153.773247,0.00038371,120]
[394171704,1763346914658,153.773247,0.00038371,120]
[394171705,1763346914958,153.773247,0.00038371,120]
[394171706,1763346915257,153.773247,0.00038371,120]
[394171707,1763346915351,704.774243,0.00038371,120]
[394171708,1763346915582,153.773247,0.00038371,120]
[394171709,1763346915647,704.774243,0.00038371,120]
[394171710,1763346915872,153.773247,0.00038371,120]
[394171711,1763346915964,704.774243,0.00038371,120]
[394171712,1763346916165,153.773247,0.00038371,120]
[394171713,1763346916291,704.774243,0.00038371,120]
[394171714,1763346916466,153.773254,0.00038371,120]
[394171715,1763346916791,704.774243,0.00038371,120]
[394171716,1763346917082,704.774243,0.00038371,120]
[394171717,1763346917376,704.774243,0.00038371,120]
[394171718,1763346917730,704.774243,0.00038371,120]
[394171719,1763346918035,704.774243,0.00038371,120]
[394171720,1763346918331,704.774243,0.00038371,120]
[394171721,1763346918714,704.774243,0.00038371,120]
[394171722,1763346919007,704.774243,0.00038371,120]
[394171723,1763346919289,704.774243,0.00038371,120]
[394171724,1763346919582,704.774243,0.00038371,120]
[394171725,1763346919870,704.774243,0.00038371,120]
[394171726,1763346920157,704.774243,0.00038371,120]
[394171727,1763346920449,704.774243,0.00038371,120]
[394171728,1763346920739,704.774243,0.00038371,120]
[394171729,1763346921045,704.774243,0.00038371,120]
[394171730,1763346921340,704.774249,0.00038371,120]
[394171731,1763346927989,151.0,0.00038371,120]
[394171732,1763346928281,151.0,0.00038371,120]
[394171733,1763346928591,151.0,0.00038371,120]
[394171734,1763346928898,151.0,0.00038371,120]
[394171735,1763346929179,162.880332,0.00038371,120]
[394171736,1763346943147,151.0,0.00038371,120]
[394171737,1763346943443,151.0,0.00038371,120]
[394171738,1763346943731,151.0,0.00038371,120]
[394171739,1763346944016,151.0,0.00038371,120]
[394171740,1763346944321,151.0,0.00038371,120]
[394171741,1763346944611,151.0,0.00038371,120]
[394171742,1763346945071,233.763393,0.00038371,120]
[394171743,1763346945255,602.521226,0.00038371,120]
[394171744,1763346945575,602.521226,0.00038371,120]
[394171745,1763346945898,602.521226,0.00038371,120]
[394171746,1763346946163,602.521226,0.00038371,120]
[394171747,1763346946496,602.521226,0.00038371,120]
[394171748,1763346946808,602.521226,0.00038371,120]
[394171749,1763346947117,602.521226,0.00038371,120]
[394171750,1763346947402,602.521226,0.00038371,120]
[394171751,1763346947707,602.521226,0.00038371,120]
[394171752,1763346948055,602.521226,0.00038371,120]
[394171753,1763346948464,602.521226,0.00038371,120]
[394171754,1763346948756,602.521226,0.00038371,120]
[394171755,1763346949056,602.521226,0.00038371,120]
[394171756,1763346949346,602.521226,0.00038371,120]
[394171757,1763346949640,602.521226,0.00038371,120]
[394171758,1763346949924,602.521226,0.00038371,120]
[394171759,1763346950212,602.521226,0.00038371,120]
[394171760,1763346950531,602.521226,0.00038371,120]
[394171761,1763346950837,602.521226,0.00038371,120]
[394171762,1763346951130,602.521218,0.00038371,120]
[394171763,1763346966711,151.0,0.00038371,120]
[394171764,1763346967007,153.203172,0.00038371,120]
[394171765,1763346969459,151.0,0.00038371,120]
[394171766,1763346969749,151.0,0.00038371,120]
[394171767,1763346970048,153.978385,0.00038371,120]
[394171768,1763346982096,304.946858,0.00038371,120]
[394171769,1763346982381,304.946858,0.00038371,120]
[394171770,1763346982747,304.946858,0.00038371,120]
[394171771,1763346983158,304.946858,0.00038371,120]
[394171772,1763346983449,304.946858,0.00038371,120]
[394171773,1763346983928,304.946858,0.00038371,120]